[Event "Titled Tuesday Blitz June 20 Late 2023"]
[White "crosky"]
[Black "Bolourchifard, Farzad"]
[BlackFideId "12510084"]
[WhiteElo "2354"]
[BlackElo "2317"]
[Result "0-1"]
[Round "2"]
[TimeControl "180+2"]
[Date "2023.06.20"]
[WhiteClock "0:00:00"]
[BlackClock "0:00:18"]
[Board "76"]

1. d4 {[%clk 0:03:00]}  Nf6 {[%clk 0:02:59]} 2. c4 {[%clk 0:03:00]}  e6 {[%clk 0:02:59]} 3. Nc3 {[%clk 0:03:00]}  d5 {[%clk 0:02:59]} 4. cxd5 {[%clk 0:03:01]}  exd5 {[%clk 0:02:59]} 5. Bg5 {[%clk 0:03:01]}  c6 {[%clk 0:03:00]} 6. e3 {[%clk 0:03:02]}  Be7 {[%clk 0:03:00]} 7. Bd3 {[%clk 0:03:02]}  O-O {[%clk 0:03:01]} 8. Qc2 {[%clk 0:03:03]}  Nbd7 {[%clk 0:03:01]} 9. Nge2 {[%clk 0:03:03]}  Re8 {[%clk 0:03:00]} 10. O-O {[%clk 0:03:02]}  Nf8 {[%clk 0:03:01]} 11. f3 {[%clk 0:02:59]}  Be6 {[%clk 0:03:02]} 12. Bh4 {[%clk 0:02:50]}  c5 {[%clk 0:03:01]} 13. Bf2 {[%clk 0:02:47]}  Rc8 {[%clk 0:03:00]} 14. Rad1 {[%clk 0:02:46]}  Qd7 {[%clk 0:02:52]} 15. Bb5 {[%clk 0:02:43]}  Qd8 {[%clk 0:02:52]} 16. Bxe8 {[%clk 0:02:43]}  Qxe8 {[%clk 0:02:53]} 17. dxc5 {[%clk 0:02:43]}  Bxc5 {[%clk 0:02:53]} 18. Nd4 {[%clk 0:02:21]}  a6 {[%clk 0:02:51]} 19. a4 {[%clk 0:02:15]}  Bb4 {[%clk 0:02:50]} 20. Qd3 {[%clk 0:02:12]}  Bxc3 {[%clk 0:02:49]} 21. bxc3 {[%clk 0:02:12]}  Qxa4 {[%clk 0:02:50]} 22. Rb1 {[%clk 0:01:58]}  N6d7 {[%clk 0:02:47]} 23. Nf5 {[%clk 0:01:44]}  Nc5 {[%clk 0:02:20]} 24. Ne7+ {[%clk 0:01:40]}  Kh8 {[%clk 0:02:21]} 25. Qd4 {[%clk 0:01:41]}  Rc7 {[%clk 0:02:16]} 26. Nxd5 {[%clk 0:01:34]}  Qxd4 {[%clk 0:02:11]} 27. cxd4 {[%clk 0:01:30]}  Bxd5 {[%clk 0:02:10]} 28. dxc5 {[%clk 0:01:31]}  Ne6 {[%clk 0:01:45]} 29. e4 {[%clk 0:01:27]}  Bc6 {[%clk 0:01:46]} 30. Rfd1 {[%clk 0:01:26]}  Bb5 {[%clk 0:01:41]} 31. Rd6 {[%clk 0:01:22]}  h6 {[%clk 0:01:37]} 32. Rc1 {[%clk 0:01:16]}  g5 {[%clk 0:01:36]} 33. Bd4+ {[%clk 0:01:11]}  Kh7 {[%clk 0:01:33]} 34. Be5 {[%clk 0:01:10]}  Rxc5 {[%clk 0:01:28]} 35. Rxc5 {[%clk 0:01:00]}  Nxc5 {[%clk 0:01:29]} 36. Bf6 {[%clk 0:00:45]}  Nd7 {[%clk 0:01:12]} 37. Bd4 {[%clk 0:00:40]}  a5 {[%clk 0:01:10]} 38. Rd5 {[%clk 0:00:34]}  Bc6 {[%clk 0:01:07]} 39. Rxa5 {[%clk 0:00:35]}  Nf8 {[%clk 0:01:07]} 40. Kf2 {[%clk 0:00:31]}  Ne6 {[%clk 0:01:07]} 41. Bf6 {[%clk 0:00:32]}  Kg6 {[%clk 0:01:08]} 42. Bc3 {[%clk 0:00:27]}  h5 {[%clk 0:01:08]} 43. h3 {[%clk 0:00:26]}  h4 {[%clk 0:01:08]} 44. Bd2 {[%clk 0:00:24]}  Bd7 {[%clk 0:01:07]} 45. Be3 {[%clk 0:00:23]}  Bc6 {[%clk 0:01:07]} 46. Ke1 {[%clk 0:00:20]}  Bd7 {[%clk 0:01:07]} 47. Ra8 {[%clk 0:00:16]}  Bb5 {[%clk 0:01:04]} 48. Rb8 {[%clk 0:00:15]}  Ba6 {[%clk 0:01:04]} 49. Kf2 {[%clk 0:00:15]}  Kg7 {[%clk 0:01:03]} 50. g3 {[%clk 0:00:15]}  hxg3+ {[%clk 0:01:02]} 51. Kxg3 {[%clk 0:00:16]}  Kg6 {[%clk 0:01:01]} 52. Rg8+ {[%clk 0:00:13]}  Kh7 {[%clk 0:01:01]} 53. Re8 {[%clk 0:00:12]}  Ng7 {[%clk 0:00:52]} 54. Re7 {[%clk 0:00:10]}  Kg6 {[%clk 0:00:52]} 55. Rc7 {[%clk 0:00:09]}  Ne6 {[%clk 0:00:47]} 56. Rc8 {[%clk 0:00:07]}  Bb5 {[%clk 0:00:46]} 57. h4 {[%clk 0:00:07]}  gxh4+ {[%clk 0:00:45]} 58. Kxh4 {[%clk 0:00:08]}  Be2 {[%clk 0:00:42]} 59. f4 {[%clk 0:00:07]}  Kf6 {[%clk 0:00:40]} 60. Bd2 {[%clk 0:00:03]}  b5 {[%clk 0:00:33]} 61. Bc3+ {[%clk 0:00:04]}  Ke7 {[%clk 0:00:32]} 62. Kg3 {[%clk 0:00:04]}  Kd7 {[%clk 0:00:31]} 63. Rb8 {[%clk 0:00:04]}  Nc5 {[%clk 0:00:27]} 64. Bd4 {[%clk 0:00:01]}  Nxe4+ {[%clk 0:00:27]} 65. Kg2 {[%clk 0:00:01]}  Ke6 {[%clk 0:00:24]} 66. Rb6+ {[%clk 0:00:01]}  Kd5 {[%clk 0:00:24]} 67. Be3 {[%clk 0:00:02]}  Kc4 {[%clk 0:00:20]} 68. Rb7 {[%clk 0:00:01]}  Nd6 {[%clk 0:00:20]} 69. Rd7 {[%clk 0:00:00]}  Kd5 {[%clk 0:00:18]} 0-1


[Site "https://www.chess.com"]

[Event "Titled Tuesday Blitz June 20 Late 2023"]
[White "Maatman, Nick"]
[Black "Rodrigues, Bruno Morado"]
[WhiteFideId "1040391"]
[BlackFideId "2115654"]
[WhiteElo "2680"]
[BlackElo "2040"]
[Result "1-0"]
[Round "2"]
[TimeControl "180+2"]
[Date "2023.06.20"]
[WhiteClock "0:01:54"]
[BlackClock "0:01:17"]
[Board "77"]

1. d4 {[%clk 0:03:00]}  d5 {[%clk 0:02:59]} 2. c4 {[%clk 0:03:01]}  c6 {[%clk 0:02:59]} 3. Nf3 {[%clk 0:03:01]}  Nf6 {[%clk 0:02:59]} 4. g3 {[%clk 0:02:57]}  e6 {[%clk 0:02:59]} 5. Bg2 {[%clk 0:02:56]}  Nbd7 {[%clk 0:03:00]} 6. O-O {[%clk 0:02:57]}  Bd6 {[%clk 0:03:00]} 7. b3 {[%clk 0:02:54]}  O-O {[%clk 0:03:01]} 8. Bb2 {[%clk 0:02:54]}  Qe7 {[%clk 0:03:00]} 9. Nbd2 {[%clk 0:02:46]}  e5 {[%clk 0:02:59]} 10. dxe5 {[%clk 0:02:45]}  Nxe5 {[%clk 0:03:00]} 11. cxd5 {[%clk 0:02:42]}  Nxd5 {[%clk 0:02:59]} 12. Nxe5 {[%clk 0:02:40]}  Bxe5 {[%clk 0:03:00]} 13. Bxe5 {[%clk 0:02:39]}  Qxe5 {[%clk 0:03:01]} 14. Nc4 {[%clk 0:02:40]}  Qh5 {[%clk 0:03:00]} 15. Bxd5 {[%clk 0:02:30]}  cxd5 {[%clk 0:03:01]} 16. Ne3 {[%clk 0:02:30]}  Be6 {[%clk 0:02:54]} 17. Re1 {[%clk 0:02:27]}  Rac8 {[%clk 0:02:49]} 18. Qd4 {[%clk 0:02:26]}  a6 {[%clk 0:02:40]} 19. Rad1 {[%clk 0:02:23]}  Rfd8 {[%clk 0:02:26]} 20. Rd2 {[%clk 0:02:22]}  Rd7 {[%clk 0:02:18]} 21. Red1 {[%clk 0:02:21]}  h6 {[%clk 0:02:08]} 22. Ng2 {[%clk 0:02:19]}  Qg5 {[%clk 0:01:53]} 23. h4 {[%clk 0:02:08]}  Qe7 {[%clk 0:01:48]} 24. Nf4 {[%clk 0:02:05]}  Rcd8 {[%clk 0:01:41]} 25. Nh5 {[%clk 0:02:03]}  Qf8 {[%clk 0:01:40]} 26. Rc1 {[%clk 0:01:58]}  Bg4 {[%clk 0:01:17]} 27. Qxg4 {[%clk 0:01:54]} 1-0


[Site "https://www.chess.com"]

[Event "Titled Tuesday Blitz June 20 Late 2023"]
[White "Lamard, Guillaume"]
[Black "Spichkin, Alexander"]
[WhiteFideId "600261"]
[BlackFideId "4144074"]
[WhiteElo "2413"]
[BlackElo "1986"]
[Result "1-0"]
[Round "2"]
[TimeControl "180+2"]
[Date "2023.06.20"]
[WhiteClock "0:00:27"]
[BlackClock "0:00:00"]
[Board "79"]

1. e4 {[%clk 0:03:00]}  e5 {[%clk 0:02:56]} 2. Nf3 {[%clk 0:03:00]}  d5 {[%clk 0:02:57]} 3. exd5 {[%clk 0:02:54]}  e4 {[%clk 0:02:56]} 4. Ne5 {[%clk 0:02:45]}  Qxd5 {[%clk 0:02:52]} 5. d4 {[%clk 0:02:45]}  exd3 {[%clk 0:02:52]} 6. Nxd3 {[%clk 0:02:43]}  Nc6 {[%clk 0:02:50]} 7. Nc3 {[%clk 0:02:43]}  Bb4 {[%clk 0:02:50]} 8. Bd2 {[%clk 0:02:33]}  Bxc3 {[%clk 0:02:44]} 9. Bxc3 {[%clk 0:02:33]}  Nf6 {[%clk 0:02:43]} 10. Qe2+ {[%clk 0:02:25]}  Be6 {[%clk 0:02:39]} 11. Nf4 {[%clk 0:02:24]}  Qd7 {[%clk 0:02:34]} 12. Rd1 {[%clk 0:02:20]}  Qe7 {[%clk 0:02:33]} 13. Nxe6 {[%clk 0:02:20]}  fxe6 {[%clk 0:02:33]} 14. g3 {[%clk 0:02:16]}  Nd5 {[%clk 0:02:29]} 15. Bh3 {[%clk 0:02:04]}  Nxc3 {[%clk 0:02:19]} 16. bxc3 {[%clk 0:02:03]}  Rd8 {[%clk 0:02:15]} 17. O-O {[%clk 0:02:00]}  e5 {[%clk 0:02:12]} 18. Qb5 {[%clk 0:01:52]}  O-O {[%clk 0:02:06]} 19. Qxb7 {[%clk 0:01:52]}  Rd6 {[%clk 0:01:54]} 20. Bg2 {[%clk 0:01:45]}  Nd8 {[%clk 0:01:29]} 21. Qxa7 {[%clk 0:01:44]}  Ne6 {[%clk 0:01:22]} 22. a4 {[%clk 0:01:38]}  Rfd8 {[%clk 0:01:16]} 23. Rde1 {[%clk 0:01:31]}  Nf8 {[%clk 0:01:11]} 24. a5 {[%clk 0:01:29]}  Ng6 {[%clk 0:01:01]} 25. Qc5 {[%clk 0:01:24]}  Qf6 {[%clk 0:00:59]} 26. Qxc7 {[%clk 0:01:20]}  h6 {[%clk 0:00:56]} 27. c4 {[%clk 0:01:17]}  h5 {[%clk 0:00:52]} 28. Rb1 {[%clk 0:01:08]}  Rd4 {[%clk 0:00:53]} 29. Rb6 {[%clk 0:01:06]}  Qg5 {[%clk 0:00:47]} 30. a6 {[%clk 0:01:03]}  e4 {[%clk 0:00:47]} 31. h4 {[%clk 0:00:56]}  Nxh4 {[%clk 0:00:38]} 32. gxh4 {[%clk 0:00:54]}  Qg4 {[%clk 0:00:31]} 33. Qg3 {[%clk 0:00:53]}  Qf5 {[%clk 0:00:27]} 34. Rg6 {[%clk 0:00:46]}  R4d7 {[%clk 0:00:24]} 35. Rg5 {[%clk 0:00:46]}  Qf7 {[%clk 0:00:22]} 36. Bxe4 {[%clk 0:00:44]}  Qxc4 {[%clk 0:00:22]} 37. Bd3 {[%clk 0:00:42]}  Qd4 {[%clk 0:00:20]} 38. Re1 {[%clk 0:00:41]}  Rf8 {[%clk 0:00:19]} 39. Re3 {[%clk 0:00:39]}  Rdf7 {[%clk 0:00:16]} 40. Re2 {[%clk 0:00:32]}  Rf3 {[%clk 0:00:14]} 41. Rxg7+ {[%clk 0:00:25]}  Qxg7 {[%clk 0:00:13]} 42. Qxg7+ {[%clk 0:00:26]}  Kxg7 {[%clk 0:00:13]} 43. a7 {[%clk 0:00:27]}  Rxd3 {[%clk 0:00:12]} 44. cxd3 {[%clk 0:00:27]}  Ra8 {[%clk 0:00:13]} 45. Ra2 {[%clk 0:00:27]}  Kf6 {[%clk 0:00:14]} 46. Kg2 {[%clk 0:00:27]}  Ke5 {[%clk 0:00:15]} 47. Kf3 {[%clk 0:00:28]}  Kd4 {[%clk 0:00:15]} 48. Kf4 {[%clk 0:00:28]}  Kxd3 {[%clk 0:00:15]} 49. Kg5 {[%clk 0:00:28]}  Ke4 {[%clk 0:00:16]} 50. Ra5 {[%clk 0:00:27]}  Kf3 {[%clk 0:00:15]} 51. Kxh5 {[%clk 0:00:27]}  Kxf2 {[%clk 0:00:15]} 52. Kg6 {[%clk 0:00:28]}  Kg3 {[%clk 0:00:16]} 53. h5 {[%clk 0:00:28]}  Kh4 {[%clk 0:00:15]} 54. Ra4+ {[%clk 0:00:26]}  Kg3 {[%clk 0:00:00]} 55. h6 {[%clk 0:00:27]} 1-0


[Site "https://www.chess.com"]

[Event "Titled Tuesday Blitz June 20 Late 2023"]
[White "Martins, Bruno Andre Leite"]
[Black "Boder, Jan"]
[WhiteFideId "1942255"]
[BlackFideId "16243226"]
[WhiteElo "2241"]
[BlackElo "2241"]
[Result "1-0"]
[Round "2"]
[TimeControl "180+2"]
[Date "2023.06.20"]
[WhiteClock "0:00:06"]
[BlackClock "0:00:00"]
[Board "82"]

1. e4 {[%clk 0:02:58]}  c5 {[%clk 0:03:00]} 2. Nf3 {[%clk 0:02:58]}  Nc6 {[%clk 0:03:00]} 3. d4 {[%clk 0:02:59]}  cxd4 {[%clk 0:03:00]} 4. Nxd4 {[%clk 0:02:59]}  g6 {[%clk 0:03:01]} 5. c4 {[%clk 0:02:58]}  Nf6 {[%clk 0:03:01]} 6. Nc3 {[%clk 0:02:56]}  d6 {[%clk 0:03:01]} 7. f3 {[%clk 0:02:53]}  Nxd4 {[%clk 0:02:57]} 8. Qxd4 {[%clk 0:02:52]}  Bg7 {[%clk 0:02:58]} 9. Be3 {[%clk 0:02:52]}  O-O {[%clk 0:02:58]} 10. Qd2 {[%clk 0:02:53]}  Be6 {[%clk 0:02:55]} 11. Rc1 {[%clk 0:02:47]}  a5 {[%clk 0:02:55]} 12. b3 {[%clk 0:02:43]}  Bd7 {[%clk 0:02:54]} 13. Be2 {[%clk 0:02:39]}  a4 {[%clk 0:02:53]} 14. b4 {[%clk 0:02:39]}  Be6 {[%clk 0:02:51]} 15. O-O {[%clk 0:02:38]}  a3 {[%clk 0:02:41]} 16. Rfd1 {[%clk 0:02:25]}  Nd7 {[%clk 0:02:35]} 17. Nb5 {[%clk 0:02:19]}  Nb6 {[%clk 0:02:22]} 18. c5 {[%clk 0:02:14]}  dxc5 {[%clk 0:02:19]} 19. Qe1 {[%clk 0:01:26]}  Qb8 {[%clk 0:02:17]} 20. Bxc5 {[%clk 0:01:21]}  Nc8 {[%clk 0:01:31]} 21. Rc2 {[%clk 0:01:09]}  b6 {[%clk 0:01:22]} 22. Bd4 {[%clk 0:01:04]}  Nd6 {[%clk 0:01:21]} 23. Bxg7 {[%clk 0:01:02]}  Kxg7 {[%clk 0:01:20]} 24. Nxd6 {[%clk 0:00:58]}  exd6 {[%clk 0:01:21]} 25. Qc3+ {[%clk 0:00:51]}  Kg8 {[%clk 0:01:21]} 26. Qd4 {[%clk 0:00:50]}  Rd8 {[%clk 0:01:19]} 27. Rcd2 {[%clk 0:00:50]}  Qc7 {[%clk 0:01:12]} 28. h4 {[%clk 0:00:50]}  h5 {[%clk 0:01:07]} 29. Qf6 {[%clk 0:00:43]}  Rac8 {[%clk 0:01:01]} 30. f4 {[%clk 0:00:32]}  Qc3 {[%clk 0:00:55]} 31. Qg5 {[%clk 0:00:31]}  Bg4 {[%clk 0:00:42]} 32. Bxg4 {[%clk 0:00:29]}  hxg4 {[%clk 0:00:43]} 33. f5 {[%clk 0:00:22]}  Qe5 {[%clk 0:00:36]} 34. Qxg4 {[%clk 0:00:21]}  Rc4 {[%clk 0:00:36]} 35. fxg6 {[%clk 0:00:20]}  f6 {[%clk 0:00:29]} 36. Rd5 {[%clk 0:00:09]}  Rxe4 {[%clk 0:00:23]} 37. Qh5 {[%clk 0:00:10]}  Qxh5 {[%clk 0:00:19]} 38. Rxh5 {[%clk 0:00:11]}  Rxb4 {[%clk 0:00:19]} 39. Rd2 {[%clk 0:00:10]}  Rb2 {[%clk 0:00:19]} 40. Rhd5 {[%clk 0:00:09]}  Rc8 {[%clk 0:00:17]} 41. Rxd6 {[%clk 0:00:05]}  Rcc2 {[%clk 0:00:17]} 42. Rxc2 {[%clk 0:00:04]}  Rxc2 {[%clk 0:00:18]} 43. Rxf6 {[%clk 0:00:04]}  Rxa2 {[%clk 0:00:17]} 44. Rxb6 {[%clk 0:00:04]}  Kg7 {[%clk 0:00:13]} 45. Kh2 {[%clk 0:00:03]}  Rb2 {[%clk 0:00:11]} 46. Ra6 {[%clk 0:00:04]}  a2 {[%clk 0:00:12]} 47. Kh3 {[%clk 0:00:04]}  Rb3+ {[%clk 0:00:12]} 48. g3 {[%clk 0:00:04]}  Rb2 {[%clk 0:00:12]} 49. h5 {[%clk 0:00:04]}  Kh6 {[%clk 0:00:12]} 50. g4 {[%clk 0:00:03]}  Rc2 {[%clk 0:00:09]} 51. Ra7 {[%clk 0:00:03]}  Rb2 {[%clk 0:00:03]} 52. Kh4 {[%clk 0:00:03]}  Rh2+ {[%clk 0:00:02]} 53. Kg3 {[%clk 0:00:04]}  Rb2 {[%clk 0:00:03]} 54. Kf4 {[%clk 0:00:04]}  Rb4+ {[%clk 0:00:03]} 55. Kf5 {[%clk 0:00:04]}  Rb5+ {[%clk 0:00:03]} 56. Kf6 {[%clk 0:00:05]}  Rb6+ {[%clk 0:00:04]} 57. Kf7 {[%clk 0:00:05]}  Rb2 {[%clk 0:00:03]} 58. g7 {[%clk 0:00:04]}  Rf2+ {[%clk 0:00:04]} 59. Kg8 {[%clk 0:00:04]}  Kg5 {[%clk 0:00:04]} 60. Kh8 {[%clk 0:00:05]}  a1=Q {[%clk 0:00:02]} 61. Rxa1 {[%clk 0:00:04]}  Kh6 {[%clk 0:00:02]} 62. g8=Q {[%clk 0:00:05]}  Rf8 {[%clk 0:00:02]} 63. Qxf8+ {[%clk 0:00:04]}  Kg5 {[%clk 0:00:03]} 64. Qg7+ {[%clk 0:00:05]}  Kh4 {[%clk 0:00:04]} 65. Rh1+ {[%clk 0:00:05]}  Kg3 {[%clk 0:00:05]} 66. Qc3+ {[%clk 0:00:05]}  Kg2 {[%clk 0:00:06]} 67. Qh3+ {[%clk 0:00:05]}  Kf2 {[%clk 0:00:05]} 68. Rf1+ {[%clk 0:00:05]}  Ke2 {[%clk 0:00:00]} 69. Qf3+ {[%clk 0:00:06]} 1-0


[Site "https://www.chess.com"]

[Event "Titled Tuesday Blitz June 20 Late 2023"]
[White "Barrionuevo, Pablo"]
[Black "Sun, Rick"]
[WhiteFideId "110566"]
[BlackFideId "30909481"]
[WhiteElo "2212"]
[BlackElo "2169"]
[Result "0-1"]
[Round "2"]
[TimeControl "180+2"]
[Date "2023.06.20"]
[WhiteClock "0:01:06"]
[BlackClock "0:01:05"]
[Board "83"]

1. d4 {[%clk 0:03:00]}  d6 {[%clk 0:03:00]} 2. Nf3 {[%clk 0:02:59]}  Nf6 {[%clk 0:03:01]} 3. Bg5 {[%clk 0:02:58]}  Nbd7 {[%clk 0:03:00]} 4. Nbd2 {[%clk 0:02:58]}  e5 {[%clk 0:03:00]} 5. e4 {[%clk 0:02:53]}  Be7 {[%clk 0:03:00]} 6. Bd3 {[%clk 0:02:51]}  c6 {[%clk 0:02:58]} 7. c3 {[%clk 0:02:51]}  Qc7 {[%clk 0:02:58]} 8. a4 {[%clk 0:02:51]}  Nf8 {[%clk 0:02:55]} 9. dxe5 {[%clk 0:02:45]}  dxe5 {[%clk 0:02:55]} 10. Nc4 {[%clk 0:02:45]}  Ng6 {[%clk 0:02:55]} 11. a5 {[%clk 0:02:41]}  Be6 {[%clk 0:02:43]} 12. Qc2 {[%clk 0:02:34]}  h6 {[%clk 0:02:22]} 13. Be3 {[%clk 0:02:30]}  O-O {[%clk 0:02:18]} 14. h3 {[%clk 0:02:29]}  Rfd8 {[%clk 0:02:17]} 15. Be2 {[%clk 0:02:15]}  Qc8 {[%clk 0:01:49]} 16. Nfxe5 {[%clk 0:02:02]}  Nxe5 {[%clk 0:01:34]} 17. Nxe5 {[%clk 0:02:03]}  Qc7 {[%clk 0:01:34]} 18. Nf3 {[%clk 0:02:02]}  Nd7 {[%clk 0:01:24]} 19. Nd4 {[%clk 0:02:01]}  Ne5 {[%clk 0:01:14]} 20. Nxe6 {[%clk 0:01:58]}  fxe6 {[%clk 0:01:14]} 21. f4 {[%clk 0:01:54]}  Bh4+ {[%clk 0:01:14]} 22. Kf1 {[%clk 0:01:50]}  Ng6 {[%clk 0:01:14]} 23. Qc1 {[%clk 0:01:44]}  Nxf4 {[%clk 0:01:09]} 24. Bxf4 {[%clk 0:01:41]}  Rf8 {[%clk 0:01:10]} 25. Kg1 {[%clk 0:01:37]}  Rxf4 {[%clk 0:01:09]} 26. Rh2 {[%clk 0:01:17]}  Bg3 {[%clk 0:01:06]} 27. Rh1 {[%clk 0:01:06]}  Bf2+ {[%clk 0:01:05]} 0-1


[Site "https://www.chess.com"]

[Event "Titled Tuesday Blitz June 20 Late 2023"]
[White "Kopacz, Grzegorz"]
[Black "Jaracz, Pawel"]
[WhiteFideId "1109880"]
[BlackFideId "1102222"]
[WhiteElo "2037"]
[BlackElo "2454"]
[Result "0-1"]
[Round "2"]
[TimeControl "180+2"]
[Date "2023.06.20"]
[WhiteClock "0:00:05"]
[BlackClock "0:00:03"]
[Board "84"]

1. e4 {[%clk 0:03:00]}  e5 {[%clk 0:02:55]} 2. Nf3 {[%clk 0:02:59]}  Nc6 {[%clk 0:02:54]} 3. Bc4 {[%clk 0:02:57]}  Be7 {[%clk 0:02:53]} 4. d4 {[%clk 0:02:54]}  exd4 {[%clk 0:02:49]} 5. Nxd4 {[%clk 0:02:52]}  d6 {[%clk 0:02:41]} 6. O-O {[%clk 0:02:49]}  Nf6 {[%clk 0:02:40]} 7. Nc3 {[%clk 0:02:46]}  O-O {[%clk 0:02:39]} 8. f3 {[%clk 0:02:43]}  Bd7 {[%clk 0:02:34]} 9. Kh1 {[%clk 0:02:40]}  Na5 {[%clk 0:02:21]} 10. Be2 {[%clk 0:02:34]}  c5 {[%clk 0:02:17]} 11. Nb3 {[%clk 0:02:29]}  Bc6 {[%clk 0:02:13]} 12. Nxa5 {[%clk 0:02:17]}  Qxa5 {[%clk 0:02:12]} 13. Bc4 {[%clk 0:02:17]}  b5 {[%clk 0:02:10]} 14. Bd5 {[%clk 0:02:15]}  Qc7 {[%clk 0:02:03]} 15. Bf4 {[%clk 0:02:04]}  b4 {[%clk 0:02:01]} 16. Bxc6 {[%clk 0:02:02]}  Qxc6 {[%clk 0:02:01]} 17. Nd5 {[%clk 0:01:54]}  Nxd5 {[%clk 0:02:01]} 18. exd5 {[%clk 0:01:52]}  Qd7 {[%clk 0:01:54]} 19. c4 {[%clk 0:01:38]}  bxc3 {[%clk 0:01:52]} 20. bxc3 {[%clk 0:01:38]}  Bf6 {[%clk 0:01:52]} 21. Rc1 {[%clk 0:01:37]}  Rab8 {[%clk 0:01:50]} 22. Qd2 {[%clk 0:01:34]}  Rb6 {[%clk 0:01:48]} 23. Rb1 {[%clk 0:01:31]}  Rfb8 {[%clk 0:01:47]} 24. Rxb6 {[%clk 0:01:29]}  Rxb6 {[%clk 0:01:47]} 25. Re1 {[%clk 0:01:22]}  h6 {[%clk 0:01:40]} 26. h3 {[%clk 0:01:03]}  Be7 {[%clk 0:01:09]} 27. Re4 {[%clk 0:00:43]}  Bf8 {[%clk 0:01:09]} 28. Qf2 {[%clk 0:00:35]}  Qb7 {[%clk 0:01:08]} 29. Qg3 {[%clk 0:00:32]}  Rb1+ {[%clk 0:01:03]} 30. Kh2 {[%clk 0:00:32]}  Qxd5 {[%clk 0:01:01]} 31. Bxh6 {[%clk 0:00:25]}  Qd1 {[%clk 0:00:55]} 32. Qg4 {[%clk 0:00:19]}  Qh1+ {[%clk 0:00:45]} 33. Kg3 {[%clk 0:00:19]}  Rg1 {[%clk 0:00:44]} 34. Re2 {[%clk 0:00:16]}  Re1 {[%clk 0:00:35]} 35. Rb2 {[%clk 0:00:12]}  Re6 {[%clk 0:00:27]} 36. Bf4 {[%clk 0:00:04]}  Rg6 {[%clk 0:00:27]} 37. Bg5 {[%clk 0:00:04]}  f6 {[%clk 0:00:24]} 38. Qe6+ {[%clk 0:00:04]}  Kh7 {[%clk 0:00:23]} 39. Qf5 {[%clk 0:00:01]}  Qe1+ {[%clk 0:00:14]} 40. Kh2 {[%clk 0:00:02]}  Qxc3 {[%clk 0:00:13]} 41. Re2 {[%clk 0:00:01]}  fxg5 {[%clk 0:00:05]} 42. Qxf8 {[%clk 0:00:02]}  Qf6 {[%clk 0:00:05]} 43. Qxf6 {[%clk 0:00:02]}  gxf6 {[%clk 0:00:04]} 44. Re8 {[%clk 0:00:03]}  Rg7 {[%clk 0:00:04]} 45. Ra8 {[%clk 0:00:04]}  Rd7 {[%clk 0:00:04]} 46. Re8 {[%clk 0:00:03]}  Kg7 {[%clk 0:00:03]} 47. Re6 {[%clk 0:00:04]}  Kf7 {[%clk 0:00:04]} 48. Re2 {[%clk 0:00:05]}  d5 {[%clk 0:00:04]} 49. Kg1 {[%clk 0:00:05]}  d4 {[%clk 0:00:04]} 50. Kf2 {[%clk 0:00:06]}  c4 {[%clk 0:00:05]} 51. Ke1 {[%clk 0:00:07]}  c3 {[%clk 0:00:05]} 52. Rc2 {[%clk 0:00:05]}  Ke6 {[%clk 0:00:03]} 53. Kd1 {[%clk 0:00:03]}  Kd5 {[%clk 0:00:03]} 54. g3 {[%clk 0:00:04]}  Kc4 {[%clk 0:00:04]} 55. h4 {[%clk 0:00:04]}  gxh4 {[%clk 0:00:03]} 56. gxh4 {[%clk 0:00:05]}  Rb7 {[%clk 0:00:04]} 57. Ke2 {[%clk 0:00:05]}  Rb2 {[%clk 0:00:03]} 0-1


[Site "https://www.chess.com"]

[Event "Titled Tuesday Blitz June 20 Late 2023"]
[White "Salimova, Nurgyul"]
[Black "Quirke, Jeffrey"]
[WhiteFideId "2915138"]
[BlackFideId "2013029"]
[WhiteElo "2343"]
[BlackElo "2213"]
[Result "1-0"]
[Round "2"]
[TimeControl "180+2"]
[Date "2023.06.20"]
[WhiteClock "0:00:36"]
[BlackClock "0:00:16"]
[Board "86"]

1. d4 {[%clk 0:03:00]}  e6 {[%clk 0:02:59]} 2. Nf3 {[%clk 0:03:00]}  c5 {[%clk 0:02:56]} 3. c3 {[%clk 0:02:59]}  Nf6 {[%clk 0:02:55]} 4. Bg5 {[%clk 0:02:58]}  Be7 {[%clk 0:02:51]} 5. e3 {[%clk 0:02:58]}  b6 {[%clk 0:02:51]} 6. Nbd2 {[%clk 0:02:57]}  Bb7 {[%clk 0:02:51]} 7. Bd3 {[%clk 0:02:57]}  d6 {[%clk 0:02:47]} 8. Qe2 {[%clk 0:02:53]}  O-O {[%clk 0:02:38]} 9. h4 {[%clk 0:02:49]}  cxd4 {[%clk 0:02:35]} 10. exd4 {[%clk 0:02:47]}  Nc6 {[%clk 0:02:35]} 11. h5 {[%clk 0:02:45]}  h6 {[%clk 0:02:33]} 12. Bxf6 {[%clk 0:02:40]}  Bxf6 {[%clk 0:02:34]} 13. Qe4 {[%clk 0:02:36]}  Re8 {[%clk 0:02:34]} 14. Qh7+ {[%clk 0:02:36]}  Kf8 {[%clk 0:02:35]} 15. Ne4 {[%clk 0:02:20]}  d5 {[%clk 0:02:24]} 16. Nxf6 {[%clk 0:02:06]}  Qxf6 {[%clk 0:02:25]} 17. Bb5 {[%clk 0:02:06]}  Rec8 {[%clk 0:02:07]} 18. Bxc6 {[%clk 0:02:04]}  Bxc6 {[%clk 0:02:08]} 19. Ne5 {[%clk 0:01:59]}  Bb5 {[%clk 0:02:08]} 20. Rh3 {[%clk 0:01:56]}  Qf5 {[%clk 0:01:36]} 21. Qxf5 {[%clk 0:01:55]}  exf5 {[%clk 0:01:35]} 22. Rf3 {[%clk 0:01:50]}  f6 {[%clk 0:01:28]} 23. Ng6+ {[%clk 0:01:48]}  Kf7 {[%clk 0:01:29]} 24. Kd2 {[%clk 0:01:46]}  Re8 {[%clk 0:01:29]} 25. Nf4 {[%clk 0:01:43]}  Re4 {[%clk 0:01:11]} 26. g3 {[%clk 0:01:39]}  Rae8 {[%clk 0:01:10]} 27. a4 {[%clk 0:01:32]}  Bc6 {[%clk 0:01:04]} 28. Re3 {[%clk 0:01:17]}  a5 {[%clk 0:01:01]} 29. b3 {[%clk 0:01:05]}  R8e7 {[%clk 0:00:57]} 30. Rae1 {[%clk 0:01:04]}  Rxe3 {[%clk 0:00:46]} 31. Rxe3 {[%clk 0:01:04]}  Rxe3 {[%clk 0:00:44]} 32. Kxe3 {[%clk 0:01:04]}  Ke7 {[%clk 0:00:42]} 33. Ng2 {[%clk 0:00:38]}  Kd6 {[%clk 0:00:41]} 34. Kf4 {[%clk 0:00:38]}  Be8 {[%clk 0:00:41]} 35. Ne3 {[%clk 0:00:37]}  Bxh5 {[%clk 0:00:35]} 36. Nxf5+ {[%clk 0:00:37]}  Kc6 {[%clk 0:00:28]} 37. g4 {[%clk 0:00:36]}  Bg6 {[%clk 0:00:16]} 38. Ne7+ {[%clk 0:00:36]} 1-0


[Site "https://www.chess.com"]